lending/lending_fUSD_20251107
["ID","MTS","AMOUNT","RATE_DAILY","PERIOD"]
[393333076,1762486256890,-500.0,0.00032876,2]
[393333077,1762486256899,-500.0,0.00032876,2]
[393333078,1762486256908,-500.0,0.00032876,2]
[393333079,1762486256918,-500.0,0.00032876,2]
[393333080,1762486256927,-500.0,0.00032876,2]
[393333081,1762486256936,-500.0,0.00032876,2]
[393333082,1762486256945,-500.0,0.00032876,2]
[393333083,1762486256954,-500.0,0.00032876,2]
[393333084,1762486256963,-282.5363355,0.00032876,2]
[393333085,1762486256977,-1130.08,0.00032877,2]
[393333086,1762486256988,-340.0,0.00032877,2]
[393333087,1762486256998,-1000.0,0.00032877,21]
[393333088,1762486257007,-1000.0,0.00032877,21]
[393333089,1762486257017,-1000.0,0.00032877,21]
[393333090,1762486257026,-1140.0,0.00032877,21]
[393333091,1762486257035,-300.00001,0.00032877,31]
[393333092,1762486257045,-459.0,0.00032877,21]
[393333093,1762486257054,-150.0,0.00032877,60]
[393333094,1762486257064,-150.0,0.00032877,6]
[393333095,1762486257074,-500.0,0.00032877,7]
[393333096,1762486257094,-500.0,0.00032877,7]
[393333097,1762486257104,-500.0,0.00032877,7]
[393333098,1762486257115,-500.0,0.00032877,7]
[393333099,1762486257125,-500.0,0.00032877,7]
[393333100,1762486257134,-500.0,0.00032877,7]
[393333101,1762486257144,-500.0,0.00032877,7]
[393333102,1762486257154,-500.0,0.00032877,7]
[393333103,1762486257164,-500.0,0.00032877,7]
[393333104,1762486257174,-500.0,0.00032877,7]
[393333105,1762486257187,-500.0,0.00032877,7]
[393333106,1762486257196,-500.0,0.00032877,7]
[393333107,1762486257206,-500.0,0.00032877,7]
[393333108,1762486257216,-500.0,0.00032877,7]
[393333109,1762486257225,-500.0,0.00032877,7]
[393333110,1762486257235,-500.0,0.00032877,7]
[393333111,1762486257244,-500.0,0.00032877,7]
[393333112,1762486257253,-500.0,0.00032877,7]
[393333113,1762486257263,-500.0,0.00032877,7]
[393333114,1762486257272,-500.0,0.00032877,7]
[393333115,1762486257282,-500.0,0.00032877,7]
[393333116,1762486257292,-500.0,0.00032877,7]
[393333117,1762486257301,-500.0,0.00032877,7]
[393333118,1762486257310,-500.0,0.00032877,7]
[393333119,1762486257320,-500.0,0.00032877,7]
[393333120,1762486257330,-500.0,0.00032877,7]
[393333121,1762486257340,-500.0,0.00032877,7]
[393333122,1762486257350,-500.0,0.00032877,7]
[393333123,1762486257360,-500.0,0.00032877,7]
[393333124,1762486257369,-500.0,0.00032877,7]
[393333125,1762486257382,-500.0,0.00032877,7]
[393333126,1762486257391,-500.0,0.00032877,7]
[393333127,1762486257401,-500.0,0.00032877,7]
[393333128,1762486257411,-500.0,0.00032877,7]
[393333129,1762486257420,-500.0,0.00032877,7]
[393333130,1762486257429,-500.0,0.00032877,7]
[393333131,1762486257439,-500.0,0.00032877,7]
[393333132,1762486257448,-500.0,0.00032877,7]
[393333133,1762486257457,-500.0,0.00032877,7]
[393333134,1762486257467,-500.0,0.00032877,7]
[393333135,1762486257476,-500.0,0.00032877,7]
[393333136,1762486257485,-500.0,0.00032877,7]
[393333137,1762486257495,-558.17754686,0.00032877,7]
[393333138,1762486257504,-500.0,0.00032877,7]
[393333139,1762486257514,-500.0,0.00032877,7]
[393333140,1762486257525,-500.0,0.00032877,7]
[393333141,1762486257535,-167.83404792,0.0003288,30]
[393333142,1762486257544,-167.83,0.0003288,30]
[393333143,1762486257638,-176.48,0.0003288,30]
[393333144,1762486257647,-269.18039782,0.0003288,30]
[393333145,1762486257656,-269.18039782,0.0003288,30]
[393333146,1762486257665,-269.18039782,0.0003288,30]
[393333147,1762486257674,-269.18039782,0.0003288,30]
[393333148,1762486257683,-269.18039782,0.0003288,30]
[393333149,1762486257693,-269.18039782,0.0003288,30]
[393333150,1762486257704,-269.18039782,0.0003288,30]
[393333151,1762486257713,-269.18039782,0.0003288,30]
[393333152,1762486257725,-269.18039782,0.0003288,30]
[393333153,1762486257737,-269.18039782,0.0003288,30]
[393333154,1762486257749,-269.18039782,0.0003288,30]
[393333155,1762486257758,-269.18039782,0.0003288,30]
[393333156,1762486257767,-269.18039782,0.0003288,30]
[393333157,1762486257778,-269.18039782,0.0003288,30]
[393333158,1762486257787,-269.18039782,0.0003288,30]
[393333159,1762486257796,-269.18039782,0.0003288,30]
[393333160,1762486257806,-269.18039782,0.0003288,30]
[393333161,1762486257815,-269.18039782,0.0003288,30]
[393333162,1762486257823,-269.18039782,0.0003288,30]
[393333163,1762486257832,-269.18,0.0003288,30]
[393333164,1762486257841,-628.08759491,0.0003288,30]
[393333165,1762486257850,-628.08759491,0.0003288,30]
[393333166,1762486257859,-628.08759491,0.0003288,30]
[393333167,1762486257868,-628.08759491,0.0003288,30]
[393333168,1762486257877,-628.08759491,0.0003288,30]
[393333169,1762486257886,-628.08759491,0.0003288,30]
[393333170,1762486257895,-628.08759491,0.0003288,30]
[393333171,1762486257904,-628.08759491,0.0003288,30]
[393333172,1762486257912,-628.08759491,0.0003288,30]
[393333173,1762486257921,-628.08759491,0.0003288,30]
[393333174,1762486257930,-628.08759491,0.0003288,30]
[393333175,1762486257940,-628.08759491,0.0003288,30]
[393333176,1762486257952,-628.08759491,0.0003288,30]
[393333177,1762486257961,-628.08759491,0.0003288,30]
[393333178,1762486257971,-628.08759491,0.0003288,30]
[393333179,1762486257980,-628.08759491,0.0003288,30]
[393333180,1762486257989,-628.08759491,0.0003288,30]
[393333181,1762486257998,-628.08759491,0.0003288,30]
[393333182,1762486258007,-628.08759491,0.0003288,30]
[393333183,1762486258016,-628.08,0.0003288,30]
[393333184,1762486258025,-23665.97,0.000329,14]
[393333185,1762486258034,-151.0,0.000329,31]
[393333186,1762486258043,-150.0,0.00033,2]
[393333187,1762486258052,-1536.25825206,0.00033,2]
[393333188,1762486258061,-151.38258679,0.00033,2]
[393333189,1762486258070,-49833.16372406,0.00033,29]
[393333190,1762486258080,-469.19,0.00033,30]
[393333191,1762486258089,-8789.9963691,0.00033,2]
[393333192,1762486258098,-650.0,0.00033,2]
[393333193,1762486258107,-152.0,0.00033006,23]
[393333194,1762486258116,-150.0,0.00033014,60]
[393333195,1762486258126,-168.9588754,0.00033014,6]
[393333196,1762486258136,-2000.0,0.00033046,120]
[393333197,1762486258146,-203.79986204,0.00033073,120]
[393333198,1762486258155,-203.79986203,0.00033073,120]
[393333199,1762486258164,-199.0,0.0003315,7]
[393333200,1762486258174,-150.0,0.00033151,60]
[393333201,1762486258183,-767.99,0.00033165,2]
[393333202,1762486258192,-1513.83,0.000332,14]
[393333203,1762486258202,-649.91895253,0.00033246,5]
[393333204,1762486258211,-173.48364417,0.00033288,60]
[393333205,1762486258220,-2539.23,0.000333,2]
[393333206,1762486258231,-192.4,0.00033318,30]
[393333207,1762486258241,-1000.0,0.00033333,7]
[393333208,1762486258250,-3424.0,0.0003338,2]
[393333209,1762486258260,-574.0,0.0003338,2]
[393333210,1762486258269,-2142.0,0.0003338,2]
[393333211,1762486258278,-180300.0,0.000334,2]
[393333212,1762486258287,-152.0,0.00033432,24]
[393333213,1762486258297,-1194.42900083,0.000335,2]
[393333214,1762486258307,-150.0,0.00033591,2]
[393333215,1762486258318,-150.0,0.00033591,2]
[393333216,1762486258327,-150.0,0.00033591,2]
[393333217,1762486258344,-151.0,0.000336,15]
[393333218,1762486258355,-1005.0,0.000336,7]
[393333219,1762486258365,-820.0,0.0003366,2]
[393333220,1762486258375,-1596.0,0.0003366,2]
[393333221,1762486258384,-1273.0,0.0003366,2]
[393333222,1762486258393,-812.0,0.0003366,2]
[393333223,1762486258401,-1188.0,0.0003366,2]
[393333224,1762486258410,-905.0,0.0003366,2]
[393333225,1762486258420,-500.0,0.00033723,7]
[393333226,1762486258428,-500.0,0.00033758,7]
[393333227,1762486258438,-2000.0,0.00033774,120]
[393333228,1762486258447,-800.0,0.00033799,7]
[393333229,1762486258456,-26457.52052778,0.000338,2]
[393333230,1762486258465,-500.0,0.00033817,7]
[393333231,1762486258475,-152.0,0.00033858,25]
[393333232,1762486258485,-500.0,0.00033923,7]
[393333233,1762486258494,-800.0,0.00033982,7]
[393333234,1762486258504,-1000.0,0.00034,15]
[393333235,1762486258513,-1264.82,0.00034,2]
[393333236,1762486258523,-150.0,0.00034,2]
[393333237,1762486258532,-735.15,0.00034,2]
[393333238,1762486258541,-1866.77,0.00034,2]
[393333239,1762486258550,-2000.0,0.00034,2]
[393333240,1762486258559,-2000.0,0.00034,2]
[393333241,1762486258568,-2000.0,0.00034,2]
[393333242,1762486258577,-2000.0,0.00034,2]
[393333243,1762486258587,-2000.0,0.00034,2]
[393333244,1762486258597,-2000.0,0.00034,2]
[393333245,1762486258607,-2009.76,0.00034,2]
[393333246,1762486258616,-6000.0,0.00034,5]
[393333247,1762486258625,-976.96,0.00034,2]
[393333248,1762486258635,-469.19,0.00034,30]
[393333249,1762486258645,-500.0,0.00034,60]
[393333250,1762486258655,-400.0,0.00034,120]
[393333251,1762486258664,-500.0,0.0003403,7]
[393333252,1762486258674,-504.11490822,0.00034116,7]
[393333253,1762486258683,-500.0,0.00034255,7]
[393333254,1762486258692,-152.0,0.00034284,26]
[393333255,1762486258702,-1513.83,0.000343,14]
[393333256,1762486258712,-5515.0,0.000343,3]
[393333257,1762486258721,-500.0,0.00034302,7]
[393333258,1762486258734,-500.0,0.00034304,7]
[393333259,1762486258743,-800.0,0.00034305,7]
[393333260,1762486258753,-500.0,0.00034394,7]
[393333261,1762486258763,-500.0,0.00034452,7]
[393333262,1762486258774,-1705.93863522,0.0003449,2]
[393333263,1762486258783,-2539.23,0.000345,2]
[393333264,1762486258793,-2000.0,0.00034502,120]
[393333265,1762486258803,-199.0,0.0003452,8]
[393333266,1762486258813,-800.0,0.0003454,7]
[393333267,1762486258822,-500.0,0.00034587,7]
[393333268,1762486258831,-427.9636763,0.00034588,7]
[393333269,1762486258842,-1005.0,0.000346,7]
[393333270,1762486258851,-500.0,0.00034636,7]
[393333271,1762486258861,-500.0,0.00034669,7]
[393333272,1762486258871,-500.0,0.00034691,7]
[393333273,1762486258880,-152.0,0.0003471,27]
[393333274,1762486258889,-500.0,0.00034745,7]
[393333275,1762486258898,-500.0,0.00034783,7]
[393333276,1762486258907,-500.0,0.00034802,7]
[393333277,1762486258917,-1000.00000001,0.00034817,30]
[393333278,1762486258926,-1421.25133821,0.00034817,30]
[393333279,1762486258935,-1000.0,0.00034817,30]
[393333280,1762486258944,-1000.0,0.00034817,30]
[393333281,1762486258953,-1245.3447131,0.00034817,30]
[393333282,1762486258963,-1000.05187787,0.00034817,30]
[393333283,1762486258972,-1000.0,0.00034817,30]
[393333284,1762486258981,-1000.0,0.00034817,30]
[393333285,1762486258991,-1993.96473858,0.00034817,30]
[393333286,1762486259000,-500.0,0.00034817,120]
[393333287,1762486259010,-500.0,0.00034817,120]
[393333288,1762486259019,-155.0,0.00034838,7]
[393333289,1762486259028,-153.0,0.00034838,7]
[393333290,1762486259038,-153.0,0.00034838,7]
[393333291,1762486259047,-153.0,0.00034838,7]
[393333292,1762486259057,-153.0,0.00034838,7]
[393333293,1762486259067,-153.0,0.00034838,7]
[393333294,1762486259076,-153.0,0.00034838,7]
[393333295,1762486259085,-153.0,0.00034838,7]
[393333296,1762486259095,-153.0,0.00034838,7]
[393333297,1762486259104,-151.0,0.00034838,7]
[393333298,1762486259114,-151.0,0.00034838,7]
[393333299,1762486259124,-151.0,0.00034838,7]
[393333300,1762486259133,-151.0,0.00034838,7]
[393333301,1762486259142,-151.0,0.00034838,7]
[393333302,1762486259152,-151.0,0.00034838,7]
[393333303,1762486259161,-151.0,0.00034838,7]
[393333304,1762486259170,-151.0,0.00034838,7]
[393333305,1762486259181,-151.0,0.00034838,7]
[393333306,1762486259191,-151.0,0.00034838,7]
[393333307,1762486259200,-151.0,0.00034838,7]
[393333308,1762486259209,-151.0,0.00034838,7]
[393333309,1762486259219,-281.68814823,0.00034838,7]
[393333310,1762486259229,-151.0,0.00034838,7]
[393333311,1762486259238,-151.0,0.00034838,7]
[393333312,1762486259247,-151.0,0.00034838,7]
[393333313,1762486259257,-151.0,0.00034838,7]
[393333314,1762486259266,-151.0,0.00034838,7]
[393333315,1762486259275,-151.0,0.00034838,7]
[393333316,1762486259285,-151.0,0.00034858,7]
[393333317,1762486259294,-151.0,0.00034858,7]
[393333318,1762486259304,-151.0,0.00034858,7]
[393333319,1762486259314,-151.0,0.00034858,7]
[393333320,1762486259323,-151.0,0.00034858,7]
[393333321,1762486259333,-151.0,0.00034858,7]
[393333322,1762486259342,-151.0,0.00034858,7]
[393333323,1762486259352,-151.0,0.00034858,7]
[393333324,1762486259362,-151.0,0.00034858,7]
[393333325,1762486259372,-153.0,0.00034858,7]
[393333326,1762486259382,-153.0,0.00034858,7]
[393333327,1762486259391,-153.0,0.00034858,7]
[393333328,1762486259401,-153.0,0.00034858,7]
[393333329,1762486259410,-153.0,0.00034858,7]
[393333330,1762486259420,-154.82219958,0.0003486,7]
[393333331,1762486259429,-152.0,0.0003486,7]
[393333332,1762486259438,-826.0,0.0003486,7]
[393333333,1762486259448,-1779.97,0.00034867,30]
[393333334,1762486259459,-211.0,0.0003488,30]
[393333335,1762486259468,-150.0,0.00035,2]
[393333336,1762486259478,-401.32566045,0.00035,2]
[393333337,1762486259488,-1219.38980621,0.00035,2]
[393333338,1762486259501,-1000.0,0.00035,20]
[393333339,1762486259511,-1000.0,0.00035,20]
[393333340,1762486259523,-1000.0,0.00035,20]
[393333341,1762486259534,-1000.0,0.00035,20]
[393333342,1762486259543,-1000.0,0.00035,20]
[393333343,1762486259552,-1000.0,0.00035,20]
[393333344,1762486259561,-1000.0,0.00035,20]
[393333345,1762486259570,-1000.0,0.00035,20]
[393333346,1762486259580,-1000.0,0.00035,20]
[393333347,1762486259591,-1000.0,0.00035,20]
[393333348,1762486259600,-1000.0,0.00035,20]
[393333349,1762486259610,-1000.0,0.00035,20]
[393333350,1762486259619,-1000.0,0.00035,20]
[393333351,1762486259628,-1000.0,0.00035,20]
[393333352,1762486259637,-1000.0,0.00035,20]
[393333353,1762486259646,-1000.0,0.00035,20]
[393333354,1762486259655,-1000.0,0.00035,20]
[393333355,1762486259665,-1000.0,0.00035,20]
[393333356,1762486259674,-1000.0,0.00035,20]
[393333357,1762486259683,-1000.0,0.00035,20]
[393333358,1762486259694,-1000.0,0.00035,20]
[393333359,1762486259703,-1000.0,0.00035,20]
[393333360,1762486259712,-1000.0,0.00035,20]
[393333361,1762486259720,-1000.0,0.00035,20]
[393333362,1762486259734,-1000.0,0.00035,20]
[393333363,1762486259743,-1000.0,0.00035,20]
[393333364,1762486259752,-1000.0,0.00035,20]
[393333365,1762486259763,-1000.0,0.00035,20]
[393333366,1762486259773,-1000.0,0.00035,20]
[393333367,1762486259782,-1000.0,0.00035,20]
[393333368,1762486259791,-1000.0,0.00035,20]
[393333369,1762486259801,-1000.0,0.00035,20]
[393333370,1762486259810,-501.77,0.00035,20]
[393333371,1762486259819,-47335.32520936,0.00035,2]
[393333372,1762486259828,-3162.11332553,0.00035,15]
[393333373,1762486259838,-469.19,0.00035,30]
[393333374,1762486259847,-235.2,0.00035,2]
[393333375,1762486259857,-200.0,0.00035,120]
[393333376,1762486259868,-244.77701806,0.00035,4]
[393333377,1762486259878,-700.0,0.00035,2]
[393333378,1762486259888,-161.54,0.00035,2]
[393333379,1762486259897,-17326.2310427,0.00035,4]
[393333380,1762486259907,-93687.92,0.00035032,2]
[393333381,1762486259917,-500.0,0.00035041,30]
[393333382,1762486259927,-151.09,0.000351,7]
[393333383,1762486259936,-2000.0,0.000351,2]
[393333384,1762486259946,-192.4,0.00035107,60]
[393333385,1762486259956,-181.12211468,0.00035115,14]
[393333386,1762486259966,-152.0,0.00035136,28]
[393333387,1762486259976,-500.0,0.00035158,30]
[393333388,1762486259985,-5515.0,0.000352,5]
[393333389,1762486259995,-2000.0,0.00035229,120]
[393333390,1762486260006,-500.0,0.00035242,30]
[393333391,1762486260016,-500.0,0.0003527,30]
[393333392,1762486260025,-3117.31,0.000353,14]
[393333393,1762486260036,-800.0,0.00035301,30]
[393333394,1762486260046,-17384.0,0.00035367,3]
[393333395,1762486260056,-500.0,0.00035442,30]
[393333396,1762486260066,-500.0,0.00035447,30]
[393333397,1762486260077,-800.0,0.00035451,30]
[393333398,1762486260087,-2539.23,0.000355,2]
[393333399,1762486260096,-400.0,0.0003555,15]
[393333400,1762486260106,-350.9,0.0003555,7]
[393333401,1762486260116,-1000.0,0.00035561,2]
[393333402,1762486260125,-152.0,0.00035562,29]
[393333403,1762486260136,-500.0,0.00035587,30]
[393333404,1762486260146,-500.0,0.00035588,30]
[393333405,1762486260157,-1005.0,0.000356,7]
[393333406,1762486260167,-999.0,0.00035616,120]
[393333407,1762486260178,-1000.0,0.00035616,5]
[393333408,1762486260188,-1130.08,0.00035616,2]
[393333409,1762486260198,-159.78598,0.00035616,31]
[393333410,1762486260207,-151.0,0.00035616,31]
[393333411,1762486260217,-151.0,0.00035616,31]
[393333412,1762486260227,-151.0,0.00035616,31]
[393333413,1762486260237,-151.425176,0.00035616,31]
[393333414,1762486260247,-500.0,0.00035629,30]
[393333415,1762486260257,-500.0,0.00035738,30]
[393333416,1762486260267,-156.627592,0.00035768,30]
[393333417,1762486260277,-156.806367,0.00035768,30]
[393333418,1762486260288,-155.170809,0.00035768,30]
[393333419,1762486260299,-415.8,0.00035778,2]
[393333420,1762486260309,-800.0,0.00035789,30]
[393333421,1762486260319,-805.12204753,0.00035803,30]
[393333422,1762486260329,-800.0,0.00035888,30]
[393333423,1762486260339,-199.0,0.0003589,9]
[393333424,1762486260349,-300.0,0.000359,13]
[393333425,1762486260359,-800.0,0.00035947,30]
[393333426,1762486260370,-500.0,0.00035952,30]
[393333427,1762486260380,-2000.0,0.00035957,120]
[393333428,1762486260389,-152.0,0.00035988,30]
[393333429,1762486260399,-1034.91088649,0.0003599,7]
[393333430,1762486260409,-7387.0,0.00036,5]
[393333431,1762486260419,-150.0,0.00036,2]
[393333432,1762486260428,-190989.25815492,0.00036,2]
[393333433,1762486260438,-10700.05675532,0.00036,2]
[393333434,1762486260447,-1279.76175366,0.00036,10]
[393333435,1762486260457,-112025.4358027,0.00036,2]
[393333436,1762486260467,-39401.65557991,0.00036,2]
[393333437,1762486260477,-400.0,0.00036,120]
[393333438,1762486260487,-164.0,0.00036,30]
[393333439,1762486260498,-500.0,0.00036,5]
[393333440,1762486260508,-500.0,0.00036099,30]
[393333441,1762486260518,-500.0,0.00036192,30]
[393333442,1762486260528,-152.4930528,0.00036196,7]
[393333443,1762486260538,-347.84271084,0.000362,2]
[393333444,1762486260547,-308.67959943,0.000362,120]
[393333445,1762486260557,-300.05045551,0.000362,2]
[393333446,1762486260567,-157.16,0.00036212,60]
[393333447,1762486260578,-800.0,0.00036218,30]
[393333448,1762486260587,-150.0,0.00036228,7]
[393333449,1762486260597,-500.0,0.00036242,30]
[393333450,1762486260606,-1000.0,0.00036273,7]
[393333451,1762486260617,-157.16,0.00036312,60]
[393333452,1762486260627,-500.0,0.00036319,30]
[393333453,1762486260636,-3424.0,0.0003638,2]
[393333454,1762486260646,-574.0,0.0003638,2]
[393333455,1762486260656,-2142.0,0.0003638,2]
[393333456,1762486260665,-222.98525106,0.00036386,16]
[393333457,1762486260675,-1000.0,0.00036411,5]
[393333458,1762486260685,-157.16,0.00036412,60]
[393333459,1762486260694,-152.0,0.00036414,31]
[393333460,1762486260704,-500.0,0.00036473,30]
[393333461,1762486260713,-500.0,0.00036479,30]
[393333462,1762486260722,-800.0,0.00036487,30]
[393333463,1762486260737,-402.25017935,0.000365,120]
[393333464,1762486260747,-500.0,0.00036504,30]
[393333465,1762486260756,-500.0,0.00036506,30]
[393333466,1762486260765,-157.16,0.00036512,60]
[393333467,1762486260777,-800.0,0.00036577,30]
[393333468,1762486260786,-800.0,0.00036581,30]
[393333469,1762486260797,-1005.0,0.000366,7]
[393333470,1762486260806,-157.16,0.00036612,60]
[393333471,1762486260818,-500.0,0.00036634,30]
[393333472,1762486260827,-820.0,0.0003666,2]
[393333473,1762486260837,-1596.0,0.0003666,2]
[393333474,1762486260846,-1273.0,0.0003666,2]
[393333475,1762486260855,-812.0,0.0003666,2]
[393333476,1762486260866,-1188.0,0.0003666,2]
[393333477,1762486260876,-905.0,0.0003666,2]
[393333478,1762486260886,-2000.0,0.00036685,120]
[393333479,1762486260895,-800.0,0.00036698,30]
[393333480,1762486260905,-800.0,0.00036699,30]
[393333481,1762486260914,-263.0,0.000367,13]
[393333482,1762486260923,-157.16,0.00036712,60]
[393333483,1762486260932,-203.79986203,0.00036727,120]
[393333484,1762486260942,-160.40840599,0.00036767,30]
[393333485,1762486260952,-500.0,0.00036787,30]
[393333486,1762486260961,-1000.0,0.00036789,7]
[393333487,1762486260971,-1586.66339165,0.000368,2]
[393333488,1762486260981,-157.16,0.00036812,60]
[393333489,1762486260991,-466.89261371,0.00036822,5]
[393333490,1762486261002,-152.0,0.0003684,32]
[393333491,1762486261012,-1000.0,0.00036862,7]
[393333492,1762486261022,-800.0,0.00036871,30]
[393333493,1762486261031,-150.66,0.00036879,2]
[393333494,1762486261041,-205.2433,0.00036888,7]
[393333495,1762486261051,-211.0,0.0003689,30]
[393333496,1762486261061,-192.4,0.00036897,60]
[393333497,1762486261070,-13915.05875739,0.0003691,2]
[393333498,1762486261080,-157.16,0.00036912,60]
[393333499,1762486261091,-500.0,0.00036927,30]
[393333500,1762486261100,-1000.0,0.0003693,7]
[393333501,1762486261110,-160.40840599,0.00036932,30]
[393333502,1762486261122,-500.0,0.00036936,30]
[393333503,1762486261132,-800.0,0.00036942,30]
[393333504,1762486261142,-69676.09360934,0.00036999,2]
[393333505,1762486261152,-2000.0,0.00037,2]
[393333506,1762486261162,-8785.3672793,0.00037,2]
[393333507,1762486261172,-292.97147836,0.00037,10]
[393333508,1762486261182,-1207116.10099056,0.00037,10]
[393333509,1762486261191,-163.11314435,0.00037,2]
[393333510,1762486261201,-150.0,0.00037,2]
[393333511,1762486261210,-2000.0,0.00037,2]
[393333512,1762486261220,-10000.0,0.00037,19]
[393333513,1762486261231,-2000.0,0.00037,2]
[393333514,1762486261241,-10000.0,0.00037,20]
[393333515,1762486261251,-17000.0,0.00037,10]
[393333516,1762486261261,-2000.0,0.00037,2]
[393333517,1762486261271,-2000.0,0.00037,2]
[393333518,1762486261281,-2000.0,0.00037,2]
[393333519,1762486261291,-2000.0,0.00037,2]
[393333520,1762486261300,-2000.0,0.00037,2]
[393333521,1762486261310,-460.86,0.00037,3]
[393333522,1762486261320,-366.59804364,0.00037,120]
[393333523,1762486261330,-2000.0,0.00037,2]
[393333524,1762486261340,-2000.0,0.00037,2]
[393333525,1762486261350,-1613.5610753,0.00037,120]
[393333526,1762486261361,-23665.97,0.00037,14]
[393333527,1762486261372,-2453.579805,0.00037,27]
[393333528,1762486261382,-157.16,0.00037012,60]
[393333529,1762486261392,-1000.0,0.0003702,7]
[393333530,1762486261402,-1000.0,0.0003706,7]
[393333531,1762486261412,-1000.0,0.00037063,7]
[393333532,1762486261422,-2500.0,0.00037083,2]
[393333533,1762486261432,-160.40840599,0.00037096,30]
[393333534,1762486261442,-500.0,0.000371,30]
[393333535,1762486261452,-157.16,0.00037112,60]
[393333536,1762486261462,-1000.0,0.00037149,7]
[393333537,1762486261472,-500.0,0.00037198,30]
[393333538,1762486261482,-167.4277544,0.000372,120]
[393333539,1762486261493,-167.4277544,0.000372,120]
[393333540,1762486261503,-167.4277544,0.000372,120]
[393333541,1762486261513,-167.4277544,0.000372,120]
[393333542,1762486261523,-167.4277544,0.000372,120]
[393333543,1762486261534,-157.16,0.00037212,60]
[393333544,1762486261544,-300.0,0.00037233,2]
[393333545,1762486261554,-500.0,0.00037235,30]
[393333546,1762486261564,-1000.0,0.0003724,7]
[393333547,1762486261574,-199.0,0.0003726,10]
[393333548,1762486261584,-160.40840599,0.0003726,30]
[393333549,1762486261594,-152.0,0.00037266,33]
[393333550,1762486261604,-1222.87,0.0003727,2]
[393333551,1762486261615,-5925.35789551,0.00037289,2]
[393333552,1762486261624,-5000.0,0.00037289,2]
[393333553,1762486261635,-5000.0,0.00037289,2]
[393333554,1762486261644,-1000.0,0.00037291,7]
[393333555,1762486261654,-157.18363414,0.00037312,60]
[393333556,1762486261664,-500.0,0.00037313,30]
[393333557,1762486261674,-1000.0,0.00037337,7]
[393333558,1762486261684,-300.0,0.00037343,2]
[393333559,1762486261694,-1000.0,0.00037389,7]
[393333560,1762486261704,-154738.51223515,0.0003739,14]
[393333561,1762486261713,-150.0,0.00037391,120]
[393333562,1762486261724,-2000.0,0.00037412,120]
[393333563,1762486261738,-160.40840599,0.00037425,30]
[393333564,1762486261748,-1000.0,0.00037449,7]
[393333565,1762486261758,-300.0,0.00037451,2]
[393333566,1762486261769,-500.0,0.00037457,30]
[393333567,1762486261778,-300.0,0.00037461,2]
[393333568,1762486261788,-30300.0,0.00037463,7]
[393333569,1762486261798,-1000.0,0.0003748,7]
[393333570,1762486261813,-1167.0,0.00037499,20]
[393333571,1762486261824,-241864.69470676,0.000375,10]
[393333572,1762486261834,-1103.91634694,0.000375,2]
[393333573,1762486261844,-937.28106649,0.000375,2]
[393333574,1762486261854,-1500.0,0.000375,27]
[393333575,1762486261863,-1000.0,0.00037515,7]